bitfinex/quotes_ETHUSD_20240730
["timestamp","ask_amount","ask_price","bid_price","bid_amount"]
[1722354756530,3.0062,3326.5,3326.0,0.11846607]
[1722354756885,3.00635,3326.3,3326.0,0.11846607]
[1722354757247,3.00635,3326.3,3325.7,3.00684]
[1722354757434,3.00635,3326.3,3326.1,0.11841451]
[1722354757767,4.354424,3326.5,3325.9,3.00663]
[1722354757931,4.354424,3326.5,3325.5,2.4549]
[1722354757932,0.55,3326.4,3326.2,0.11836295]
[1722354758275,0.55,3326.5,3326.3,0.1183114]
[1722354758418,3.55607,3326.6,3326.3,0.1183114]
[1722354758625,3.55607,3326.6,3326.1,3.00648]
[1722354758965,3.55607,3326.6,3326.2,0.11836295]
[1722354759261,3.55607,3326.6,3326.0,3.00661]
[1722354759568,3.00617,3326.5,3326.3,0.1183114]
[1722354759788,3.00617,3326.5,3325.6,3.00697]
[1722354759789,3.00635,3326.3,3325.6,3.00697]
[1722354760091,3.00635,3326.3,3325.7,3.00687]
[1722354760214,0.55,3326.2,3325.7,3.00687]
[1722354760418,0.55,3326.2,3325.4,3.0]
[1722354760419,3.00653,3326.1,3325.4,3.0]
[1722354760667,3.55662,3326.0,3325.5,3.00705]
[1722354760860,3.55662,3326.0,3325.6,3.0]
[1722354760861,0.55,3326.0,3325.6,3.0]
[1722354761280,3.55666,3326.0,3325.4,3.0]
[1722354761445,3.55666,3326.0,3325.4,6.00711]
[1722354761767,3.0067,3325.9,3325.4,3.0]
[1722354762058,4.446799,3326.0,3325.4,3.0]
[1722354762059,0.55,3325.8,3325.4,3.0]
[1722354763479,0.55,3325.8,3325.4,6.00711]
[1722354763758,0.55,3325.8,3325.5,3.00705]
[1722354764056,3.00672,3325.9,3325.4,3.0]
[1722354764260,0.55,3325.8,3325.4,6.00712]
[1722354764643,0.55,3325.9,3325.4,6.00712]
[1722354764955,0.55,3325.9,3325.6,3.00691]
[1722354765177,0.55,3326.0,3325.6,3.00691]
[1722354765537,0.55,3326.0,3325.7,3.0068]
[1722354765735,0.55,3326.2,3325.5,3.06713574]
[1722354765938,0.55,3326.2,3325.7,3.00681]
[1722354766472,0.55,3326.3,3325.8,3.00677]
[1722354766775,10.47598,3326.7,3325.8,0.17865498]
[1722354766950,7.47,3326.7,3326.2,3.00642]
[1722354767365,7.47,3326.7,3326.1,3.00648]
[1722354767366,7.47,3326.7,3326.3,3.12457216]
[1722354767710,3.00572,3327.0,3326.3,3.12457216]
[1722354767711,3.00571,3327.0,3326.4,3.00624]
[1722354767873,3.00571,3327.0,3326.3,0.11826216]
[1722354767874,3.00587,3326.9,3326.3,3.12454216]
[1722354768088,3.00565,3327.1,3326.5,0.11815907]
[1722354768235,3.00572,3327.0,3326.4,3.12446061]
[1722354768435,3.00572,3327.0,3326.6,0.11810752]
[1722354768750,3.00572,3327.0,3326.5,0.11815907]
[1722354768975,6.01178,3326.8,3326.7,0.11805598]
[1722354769175,7.217958,3326.8,3326.7,0.11805598]
[1722354769404,3.00605,3326.7,3326.1,6.0065]
[1722354769674,0.55,3326.6,3326.1,6.0065]
[1722354769840,0.55,3326.6,3326.2,3.00642]
[1722354770355,0.55,3326.7,3326.2,3.00642]
[1722354770549,0.55,3326.7,3326.1,3.0]
[1722354770875,5.32257,3327.3,3326.6,3.00606]
[1722354770876,3.00559,3327.2,3326.6,3.00606]
[1722354771102,3.00559,3327.2,3326.6,3.00602]
[1722354771494,3.00545,3327.3,3326.8,3.00587]
[1722354771693,3.00545,3327.3,3326.7,3.00597]
[1722354772714,0.55,3327.2,3326.7,3.00597]
[1722354773217,0.55,3327.2,3326.8,3.00584]
[1722354773522,2.366,3327.7,3326.7,3.00597]
[1722354773523,0.55,3327.3,3326.7,3.00597]
[1722354773677,2.366,3327.7,3326.7,3.00597]
[1722354773678,3.00553,3327.2,3326.7,3.00597]
[1722354773878,0.55,3327.1,3326.7,3.00597]
[1722354774405,3.24182,3327.6,3326.7,3.00593]
[1722354774624,0.560782,3327.5,3326.7,3.00593]
[1722354774828,0.560782,3327.5,3326.4,5.38861]
[1722354774829,3.00502,3327.8,3327.1,3.00557]
[1722354775126,3.00487,3328.0,3327.2,3.00551]
[1722354775366,2.3766,3328.1,3327.5,3.00519]
[1722354775534,5.38137,3328.1,3327.5,3.00519]
[1722354775740,3.00482,3328.0,3327.5,3.00519]
[1722354776962,0.55,3327.9,3327.5,3.00519]
[1722354777152,3.00462,3328.2,3327.7,3.00504]
[1722354777503,3.00435,3328.6,3328.0,3.00474]
[1722354777646,3.00413,3328.8,3328.1,3.00469]
[1722354777647,3.00419,3328.7,3328.1,3.00469]
[1722354777828,3.00413,3328.8,3327.9,3.00482]
[1722354777829,3.00427,3328.6,3327.9,3.00482]
[1722354778028,3.00427,3328.6,3328.0,3.00479]
[1722354778369,3.00427,3328.6,3327.8,3.00497]
[1722354778370,3.00435,3328.5,3327.9,3.00489]
[1722354778558,3.00435,3328.6,3328.0,3.0048]
[1722354778736,3.605196,3328.6,3328.0,3.0048]
[1722354779140,3.605186,3328.6,3327.8,3.06499234]
[1722354779339,3.605186,3328.6,3327.6,3.00511]
[1722354779340,3.00459,3328.3,3327.6,3.00511]
[1722354779532,3.00459,3328.3,3327.7,6.00503]
[1722354779734,3.00439,3328.5,3327.8,6.00498]
[1722354779957,3.00445,3328.4,3327.8,6.00498]
[1722354780230,0.55,3328.3,3327.8,3.0]
[1722354780657,0.55,3328.3,3327.8,6.00497]
[1722354781446,0.55,3328.3,3327.8,3.0]
[1722354781649,0.55,3328.3,3326.7,3.00593]
[1722354781650,3.55442,3328.5,3327.9,3.12141043]
[1722354781850,0.55,3328.5,3328.2,3.00461]
[1722354782044,3.00405,3328.9,3328.2,3.00456]
[1722354782045,3.00402,3328.9,3328.2,3.00456]
[1722354782254,3.00386,3329.1,3328.5,3.0043]
[1722354782436,3.0039,3329.0,3328.4,3.00443]
[1722354782647,3.0039,3329.0,3328.5,0.11626147]
[1722354783582,3.1488357,3329.7,3329.1,3.00381]
[1722354783888,0.1455557,3329.7,3329.3,3.00362]
[1722354784467,0.1455557,3329.7,3329.4,0.11579825]
[1722354784842,0.1455557,3329.7,3329.2,3.00367]
[1722354785043,0.1455557,3329.7,3329.3,3.11940971]
[1722354785480,0.1455557,3329.7,3329.4,3.00354]
[1722354785682,0.1455557,3329.7,3329.4,3.11933825]
[1722354785981,0.1455557,3329.7,3329.4,0.11579825]
[1722354786289,0.1455557,3329.7,3329.6,6.00672]
[1722354786537,0.1455557,3329.7,3329.6,11.39648]
[1722354786655,0.1455557,3329.7,3329.6,8.39312]
[1722354786866,0.1455557,3329.7,3329.6,11.50881534]
[1722354787054,0.1455557,3329.7,3329.6,12.65969687]
[1722354788683,0.6955557,3329.7,3329.6,12.65969687]
[1722354789247,0.1455557,3329.7,3329.6,15.66305687]
[1722354789846,0.1455557,3329.7,3329.6,12.65969687]
[1722354790047,0.1455557,3329.7,3329.6,18.66641687]
[1722354790346,0.00697008,3330.0,3329.9,9.00927]
[1722354790547,0.00697008,3330.0,3329.9,12.574107]
[1722354790748,0.00697008,3330.0,3329.9,12.68964801]
[1722354791494,0.00697008,3330.0,3329.9,15.69273801]
[1722354791996,0.00697008,3330.0,3329.9,10.02264801]
[1722354794209,0.00697008,3330.0,3329.9,13.02573801]
[1722354794799,0.00697008,3330.0,3329.9,15.69273801]
[1722354795201,0.00697008,3330.0,3329.9,12.68964801]
[1722354795382,0.00697008,3330.0,3329.9,10.02264801]
[1722354796196,0.00697008,3330.0,3329.9,3.11554101]
[1722354796397,0.00697008,3330.0,3329.9,0.11554101]
[1722354796606,0.00697008,3330.0,3329.9,6.12172101]
[1722354796902,0.00697008,3330.0,3329.9,9.12172101]
[1722354797501,0.00697008,3330.0,3329.9,3.11554101]
[1722354797687,0.00697008,3330.0,3329.9,0.11554101]
[1722354797892,0.00697008,3330.0,3329.9,9.12172101]
[1722354798102,0.00697008,3330.0,3329.9,10.03389311]
[1722354799884,0.00697008,3330.0,3329.9,3.11554101]
[1722354800081,0.00697008,3330.0,3329.9,0.11554101]
[1722354801411,3.55997008,3330.0,3329.9,0.11554101]
[1722354801635,3.55997008,3330.0,3328.8,5.42984]
[1722354801636,3.0031,3329.9,3329.3,3.00361]
[1722354802230,0.55,3329.8,3329.3,3.00361]
[1722354802387,0.55,3329.8,3329.1,3.00379]
[1722354802589,3.00338,3329.6,3329.2,3.0]
[1722354802849,0.55,3329.5,3329.2,3.00367]
[1722354803122,3.55324,3329.8,3329.3,3.0]
[1722354803424,0.55,3329.8,3329.3,3.00363]
[1722354803741,0.55,3329.8,3329.6,3.00328]
[1722354803878,0.55,3329.8,3329.1,4.337776]
[1722354803879,0.55,3329.8,3329.3,3.00357]
[1722354804080,0.55697008,3330.0,3329.5,3.00339]
[1722354804321,0.00697008,3330.0,3329.6,0.0600574]
[1722354804641,0.00697008,3330.0,3329.8,3.00313]
[1722354804811,0.00697008,3330.0,3329.2,3.0]
[1722354805112,3.00316,3329.9,3329.2,3.00364]
[1722354805318,3.55318,3329.8,3329.3,3.0]
[1722354805519,3.00329,3329.7,3329.3,3.0]
[1722354805702,0.55,3329.6,3329.1,6.0038]
[1722354806079,0.55,3329.6,3329.1,7.34113]
[1722354806280,0.55,3329.8,3329.1,7.34113]
[1722354806520,0.55,3329.8,3329.5,3.00344]
[1722354806691,0.55,3329.8,3329.2,0.06006538]
[1722354806692,3.00309,3329.9,3329.2,3.00369]
[1722354806899,3.00309,3329.9,3329.3,6.0036]
[1722354807123,0.55,3329.8,3329.3,6.0036]
[1722354807580,3.55323,3329.8,3329.3,3.0]
[1722354807833,3.0033,3329.7,3329.3,3.0]
[1722354808032,3.0033,3329.7,3329.1,3.0]
[1722354808033,0.55,3329.6,3329.1,3.0]
[1722354808531,0.55,3329.6,3329.4,3.0035]
[1722354808937,3.01002008,3330.0,3329.4,3.0035]
[1722354808938,0.55,3329.9,3329.4,3.0035]
[1722354809181,0.55,3329.9,3329.5,0.06006013]
[1722354809318,3.00322,3329.8,3329.2,3.00365]
[1722354809525,0.55,3329.7,3329.3,3.0]
[1722354809707,0.55,3329.7,3329.4,0.0600637]
[1722354809907,0.55,3329.8,3329.4,0.0600637]
[1722354810210,0.55,3329.8,3329.5,0.11086141]
[1722354810818,3.55323,3329.8,3329.5,0.11086141]
[1722354811124,3.00332,3329.7,3329.4,0.06006347]
[1722354811325,0.55,3329.6,3329.4,3.06359347]
[1722354811491,0.55,3329.8,3329.4,0.06006347]
[1722354811691,0.55,3329.8,3329.2,3.00364]
[1722354811692,0.55,3329.8,3329.5,0.11092427]
[1722354811917,0.55,3329.8,3329.3,6.00359]
[1722354812117,0.55,3329.8,3329.6,0.11087282]
[1722354812314,3.00322,3329.8,3329.3,3.903919]
[1722354812630,0.55,3329.7,3329.3,0.900359]
[1722354812827,3.00327,3329.7,3329.3,3.900359]
[1722354813030,0.55,3329.6,3329.3,3.900359]
[1722354813614,3.00348,3329.5,3329.3,0.900359]
[1722354813814,0.55,3329.4,3329.1,3.0]
[1722354814036,3.55337,3329.6,3329.1,3.0]
[1722354814448,3.00346,3329.5,3329.1,3.0]
[1722354814604,0.55,3329.4,3329.1,3.0]
[1722354814798,0.55,3329.4,3329.2,1.037]
[1722354815344,0.55,3329.4,3329.2,1.09706784]
[1722354815566,0.55,3329.6,3329.2,1.037]
[1722354815841,3.00364,3329.3,3329.1,3.0]
[1722354816008,3.00364,3329.3,3328.5,3.00435]
[1722354816009,0.55,3329.2,3328.5,3.00435]
[1722354816340,0.55,3329.2,3328.5,3.0043]
[1722354816637,0.55,3329.2,3328.9,3.00394]
[1722354816851,0.55,3329.2,3329.0,0.600794]
[1722354817003,0.55,3329.3,3329.0,0.600794]
[1722354817430,3.55364,3329.3,3329.0,0.600794]
[1722354817615,3.00372,3329.2,3328.7,3.00417]
[1722354817806,0.55,3329.1,3328.8,3.0]
[1722354818002,3.00392,3329.0,3328.8,3.0]
[1722354818307,0.55,3328.9,3328.6,3.0]
[1722354818816,3.55399,3328.9,3328.6,3.0]
[1722354819015,3.55399,3328.9,3328.3,3.0045]
[1722354819016,3.00408,3328.8,3328.7,35.0]
[1722354819343,0.55,3328.8,3328.7,35.0]
[1722354819545,0.55,3328.8,3328.7,38.04244494]
[1722354819709,0.55,3328.8,3328.7,46.54868494]
[1722354819912,0.55,3328.8,3328.7,49.54868494]
[1722354820476,5.41494,3329.8,3329.2,3.00368]
[1722354820742,5.41494,3329.8,3329.3,3.00361]
[1722354820743,0.55,3329.7,3329.3,3.00361]
[1722354821073,3.00341,3329.6,3329.2,0.06006722]
[1722354821354,0.55,3329.5,3329.2,0.06006722]
[1722354821649,3.55328,3329.7,3329.2,0.06006722]
[1722354821650,0.55,3329.7,3329.2,0.06006722]
[1722354821900,0.55,3329.7,3329.2,3.06372722]
[1722354822097,0.55,3329.7,3329.3,3.00359]
[1722354822297,0.55,3329.7,3329.2,3.67047094]
[1722354822499,3.55328,3329.7,3329.2,0.66682094]
[1722354822644,3.55328,3329.7,3329.2,3.67049094]
[1722354823079,3.00341,3329.6,3329.2,0.66682094]
[1722354823260,0.55,3329.5,3329.2,0.66682094]
[1722354823583,3.55332,3329.7,3329.2,3.67050094]
[1722354823782,0.55,3329.7,3329.3,3.00355]
[1722354823983,0.55,3329.9,3329.5,3.0034]
[1722354824148,0.00697008,3330.0,3329.7,3.00327]
[1722354824349,0.00697008,3330.0,3329.8,0.39090292]
[1722354824552,0.00697008,3330.0,3329.9,3.00309]
[1722354824855,0.00697008,3330.0,3329.9,3.06314068]
[1722354825183,0.00697008,3330.0,3329.9,41.40562942]
[1722354825345,0.00697008,3330.0,3329.9,41.40253942]
[1722354825767,0.00697008,3330.0,3329.9,44.40562942]
[1722354825978,0.00697008,3330.0,3329.9,41.40253942]
[1722354826284,0.00697008,3330.0,3329.9,44.40562942]
[1722354826444,0.00697008,3330.0,3329.9,41.40253942]
[1722354826841,0.00697008,3330.0,3329.9,41.50969934]
[1722354827547,0.00697008,3330.0,3329.9,44.51278934]
[1722354827882,0.00697008,3330.0,3329.9,41.50969934]
[1722354828323,0.00697008,3330.0,3329.9,44.51278934]
[1722354828527,0.00697008,3330.0,3329.9,41.50969934]
[1722354828727,0.00697008,3330.0,3329.9,38.10715992]
[1722354829430,0.00697008,3330.0,3329.9,3.10715992]
[1722354829632,0.55697008,3330.0,3329.9,0.10715992]
[1722354829986,3.55997008,3330.0,3329.9,0.10715992]
[1722354830531,0.55697008,3330.0,3329.9,0.10715992]
[1722354831214,0.00697008,3330.0,3329.9,0.10715992]
[1722354831413,0.00697008,3330.0,3329.9,0.45727855]
[1722354831727,0.00697008,3330.0,3329.9,0.10715992]
[1722354832096,0.00697008,3330.0,3329.9,0.16721511]
[1722354832631,0.00697008,3330.0,3329.9,0.10715992]
[1722354835741,0.55697008,3330.0,3329.9,0.10715992]
[1722354836352,0.00697008,3330.0,3329.9,0.10715992]
[1722354837750,0.00697008,3330.0,3329.9,0.43800659]
[1722354838140,0.00697008,3330.0,3329.9,3.44109659]
[1722354838341,0.00697008,3330.0,3329.9,7.05252711]
[1722354838551,0.00697008,3330.0,3329.9,10.05252711]
[1722354840955,0.00697008,3330.0,3329.9,12.71952711]
[1722354841263,0.00697008,3330.0,3329.9,15.72261711]
[1722354841429,0.00697008,3330.0,3329.9,50.72261711]
[1722354841969,0.00697008,3330.0,3329.9,53.06141711]
[1722354845453,0.00697008,3330.0,3329.9,56.00445621]
[1722354850228,0.00697008,3330.0,3329.9,53.00136621]
[1722354852186,0.00697008,3330.0,3329.9,49.99827621]
[1722354852598,0.00697008,3330.0,3329.9,53.00136621]
[1722354853772,0.00697008,3330.0,3329.9,47.65947621]
[1722354855919,0.00697008,3330.0,3329.9,41.98938621]
[1722354856278,0.00697008,3330.0,3329.9,44.99247621]
[1722354857129,0.00697008,3330.0,3329.9,41.98938621]
[1722354857453,0.00697008,3330.0,3329.9,44.99247621]
[1722354858634,0.00697008,3330.0,3329.9,41.98938621]
[1722354860746,0.00697008,3330.0,3329.9,38.98629621]
[1722354861142,0.00697008,3330.0,3329.9,41.98938621]
[1722354861348,0.00697008,3330.0,3329.9,38.98629621]
[1722354862240,0.55697008,3330.0,3329.9,41.98938621]
[1722354862439,0.55697008,3330.0,3329.9,44.99247621]
[1722354862997,0.55697008,3330.0,3329.9,41.98938621]
[1722354864538,0.55697008,3330.0,3329.9,44.99247621]
[1722354865053,0.00697008,3330.0,3329.9,53.09226621]
[1722354865247,5.25703,3331.3,3330.7,3.00229]
[1722354865400,5.25703,3331.3,3330.5,5.66949]
[1722354865606,5.25703,3331.3,3330.8,0.10629862]
[1722354865924,5.25703,3331.3,3330.7,6.00468]
[1722354866207,5.25703,3331.3,3330.8,0.10629862]
[1722354866700,5.25703,3331.3,3330.7,3.602778]
[1722354866877,5.25703,3331.3,3330.9,0.10624721]
[1722354867076,3.00192,3331.2,3330.8,0.10629862]
[1722354867262,3.00192,3331.2,3331.0,0.10619581]
[1722354867604,3.00202,3331.1,3330.8,0.37090766]
[1722354867779,3.00192,3331.2,3330.7,0.600468]
[1722354868110,3.00216,3331.0,3330.6,3.0]
[1722354868408,0.55,3330.9,3330.6,3.0]
[1722354868603,3.55201,3331.1,3330.6,3.0]
[1722354868900,3.00241,3330.7,3330.1,3.00283]
[1722354869199,0.55,3330.6,3330.4,3.00263]
[1722354869385,0.55,3330.6,3330.2,41.00276]
[1722354869592,0.55,3330.7,3330.2,41.00276]
[1722354869902,0.55,3330.7,3330.4,3.00262]
[1722354870088,0.55,3330.9,3330.4,3.06266642]
[1722354870294,3.0023,3330.8,3330.3,6.05174288]
[1722354870599,0.55,3330.7,3330.4,6.00264]
[1722354870779,0.55,3330.7,3330.4,3.0]
[1722354870975,0.55,3330.8,3330.4,3.59910502]
[1722354871700,0.55,3330.8,3330.4,6.60173502]
[1722354871904,0.55,3330.8,3330.5,0.10634634]
[1722354873917,0.55,3330.8,3330.6,35.0]
[1722354874270,0.55,3330.8,3330.7,0.10624351]
[1722354875414,3.55228,3330.8,3330.7,0.10624351]
[1722354875610,0.55,3330.8,3330.7,0.10624351]
[1722354876177,3.55219,3330.9,3330.7,0.10624351]
[1722354876706,0.55,3330.9,3330.7,0.10624351]
[1722354876871,0.55,3330.9,3330.7,3.15525639]
[1722354877496,0.55,3330.9,3330.7,0.10624351]
[1722354877734,0.55,3330.9,3330.5,3.0025]
[1722354877924,0.55,3330.9,3330.6,35.10628102]
[1722354879093,0.55,3330.9,3330.6,0.10628102]
[1722354879951,3.55219,3330.9,3330.6,0.10628102]
[1722354880147,3.00232,3330.8,3330.6,0.10628102]
[1722354880447,0.55,3330.7,3330.6,0.10628102]
[1722354880650,3.5522,3330.9,3330.6,0.10628102]
[1722354881904,0.55,3330.9,3330.6,0.10628102]
[1722354882327,3.55224,3330.9,3330.6,0.10628102]
[1722354883157,0.55,3330.9,3330.6,0.10628102]
[1722354883304,0.55,3330.9,3330.6,3.1552939]
[1722354883742,0.55,3330.9,3330.6,6.1577439]
[1722354883943,0.55,3331.0,3330.6,6.1577439]
[1722354884544,3.55211,3331.0,3330.6,3.1552939]
[1722354884960,3.55211,3331.0,3330.6,0.10628102]
[1722354885163,3.55211,3331.0,3330.7,35.0]
[1722354885362,3.55211,3331.0,3330.8,0.10616198]
[1722354885566,3.55211,3331.0,3330.7,35.0]
[1722354885767,3.55211,3331.0,3330.8,0.10616198]
[1722354885954,3.00219,3330.9,3330.7,35.0]
[1722354886155,0.55,3330.8,3330.7,35.0]
[1722354886871,3.00199,3331.2,3330.7,35.10621339]
[1722354886872,0.55,3330.9,3330.7,35.10621339]
[1722354887026,0.55,3331.0,3330.7,35.10621339]
[1722354887546,3.5521,3331.0,3330.7,35.10621339]
[1722354887754,6.00456,3330.8,3330.7,0.10621339]
[1722354887925,3.00285,3330.2,3329.7,3.00321]
[1722354888130,3.00273,3330.3,3329.7,3.00318]
[1722354888419,0.55,3330.1,3330.0,3.003]
[1722354888867,3.5527,3330.4,3330.0,0.10309118]
[1722354889227,3.5527,3330.4,3329.9,3.00305]
[1722354889478,3.5527,3330.4,3330.1,0.10303974]
[1722354889642,3.00277,3330.3,3330.0,0.10309118]
[1722354889966,0.55,3330.4,3330.1,0.10303974]
[1722354890176,5.38353,3330.8,3330.1,3.0029]
[1722354890177,0.55,3330.5,3330.1,3.0029]
[1722354890398,5.38353,3330.8,3329.8,35.0]
[1722354890399,3.0027,3330.4,3330.2,0.10298831]
[1722354890532,8.29506,3330.3,3330.2,0.10298831]
[1722354890882,5.29233,3330.3,3329.2,3.00367]
[1722354891066,3.00328,3329.7,3329.3,35.0]
[1722354891578,0.55,3329.6,3329.3,38.00357]
[1722354891730,0.55,3329.6,3329.4,6.05254288]
[1722354892075,0.55,3329.8,3329.4,3.04901288]
[1722354893275,0.55,3329.8,3329.4,6.05254288]
[1722354893594,0.55,3329.8,3329.4,3.04901288]
[1722354894363,3.00328,3329.7,3329.4,3.04901288]
[1722354894566,3.00348,3329.5,3329.0,3.0]
[1722354894731,3.00355,3329.4,3329.0,3.0]
[1722354895172,0.55,3329.3,3329.0,35.0]
[1722354895465,3.55367,3329.3,3329.0,35.0]
[1722354895974,0.55,3329.3,3329.0,35.0]
[1722354896279,3.55366,3329.3,3329.0,35.0]
[1722354896859,0.55,3329.3,3329.0,35.0]
[1722354897059,3.00371,3329.3,3328.5,3.0]
[1722354897232,0.55,3329.2,3328.6,3.0]
[1722354897571,0.55,3329.2,3328.8,3.00408]
[1722354898447,0.55,3329.2,3328.8,3.00403]
[1722354898647,0.55,3329.2,3328.6,3.0042]
[1722354898838,0.55,3329.2,3328.5,4.841819]
[1722354898839,0.55,3329.3,3328.8,3.00404]
[1722354899239,0.55,3329.3,3328.8,3.00403]
[1722354899535,0.55,3329.3,3328.8,3.00402]
[1722354899740,0.55,3329.3,3328.9,35.0]
[1722354900477,2.44,3330.2,3328.9,37.3242]
[1722354900643,2.44,3330.2,3329.7,3.00322]
[1722354900842,3.00292,3330.1,3329.3,0.0600632]
[1722354901162,2.44,3330.2,3329.7,3.00326]
[1722354901335,2.44,3330.2,3329.8,3.00316]
[1722354901539,2.44,3330.2,3329.6,3.00334]
[1722354901800,3.00261,3330.5,3329.9,3.00304]
[1722354901976,2.3879,3330.6,3329.9,3.00304]
[1722354902170,3.00263,3330.5,3330.0,0.10369998]
[1722354902477,3.00255,3330.5,3329.9,3.00309]
[1722354902680,3.00265,3330.4,3330.1,0.10355398]
[1722354902880,3.00265,3330.4,3330.0,0.10360541]
[1722354903081,3.00289,3330.2,3329.5,3.00336]
[1722354903255,6.00578,3330.2,3329.6,6.00332]
[1722354903490,5.39041,3330.6,3330.0,3.00295]
[1722354903693,5.39041,3330.6,3329.8,0.06005619]
[1722354903885,10.47234,3330.8,3330.1,3.00285]
[1722354904211,3.00237,3330.7,3330.1,3.303195]
[1722354904413,3.00237,3330.7,3330.1,3.303145]
[1722354904719,10.47234,3330.8,3330.2,3.00275]
[1722354905019,10.47231,3330.8,3330.3,3.00272]
[1722354905172,6.00466,3330.8,3330.4,0.30627717]
[1722354905376,3.00241,3330.7,3330.4,0.30627717]
[1722354905576,3.00244,3330.7,3330.3,35.0]
[1722354905789,6.00489,3330.7,3330.1,3.303145]
[1722354906020,3.00244,3330.7,3330.2,3.0]
[1722354906178,3.00244,3330.7,3330.2,38.6303145]
[1722354906373,2.373,3331.5,3330.4,3.00259]
[1722354906601,2.373,3331.5,3330.3,0.06004897]
[1722354906602,3.0021,3331.0,3330.5,3.06259301]
[1722354906915,3.00241,3330.7,3330.2,6.6331345]
[1722354907076,3.00241,3330.7,3330.3,35.0]
[1722354907501,3.00228,3330.8,3330.3,38.00271]
[1722354907917,3.00228,3330.8,3330.3,35.0]
[1722354907918,3.00238,3330.7,3330.3,35.0]
[1722354908086,0.55,3330.6,3330.4,2.7175184]
[1722354908277,0.55,3330.7,3330.4,2.7175184]
[1722354908914,0.55,3330.7,3330.4,5.7201484]
[1722354909127,0.55,3330.8,3330.5,0.9305995]
[1722354909692,3.00206,3331.1,3330.5,0.9305995]
[1722354909693,3.55218,3331.0,3330.5,0.9305995]
[1722354909908,3.0022,3330.9,3330.5,0.9305995]
[1722354910210,0.55,3330.8,3330.5,0.9305995]
[1722354910523,3.0024,3330.7,3330.5,0.9305995]
[1722354910723,3.00241,3330.7,3330.3,35.0]
[1722354910929,0.55,3331.0,3330.2,3.0]
[1722354910930,3.0026,3330.5,3330.2,3.0]
[1722354911162,3.0029,3330.2,3329.1,2.4526]
[1722354911472,3.0029,3330.2,3329.5,3.0034]
[1722354911473,3.00295,3330.1,3329.5,3.0034]
[1722354911780,0.55,3330.0,3329.6,0.30034]
[1722354911935,3.553,3330.0,3329.6,0.30034]
[1722354912301,0.55,3330.0,3329.6,0.30034]
[1722354912571,0.55,3330.0,3329.6,35.30034]
[1722354912718,0.55,3330.0,3329.7,3.04901288]
[1722354913059,0.55,3330.2,3329.8,3.00315]
[1722354913268,3.55283,3330.2,3329.7,6.05228288]
[1722354913412,0.55,3330.2,3329.7,6.05221288]
[1722354913609,0.55,3330.2,3329.8,3.00318]
[1722354913870,0.55,3330.3,3329.9,3.00308]
[1722354914372,3.55279,3330.3,3329.8,0.59910502]
[1722354914530,3.00282,3330.2,3329.8,0.59910502]
[1722354914734,3.00282,3330.2,3329.7,3.0032]
[1722354914735,3.55296,3330.1,3329.4,3.0]
[1722354914918,3.00314,3329.9,3329.4,3.0]
[1722354915116,0.55,3329.8,3329.5,38.00336]
[1722354915316,0.55,3329.8,3329.6,6.04901288]
[1722354915513,0.55,3330.0,3329.6,9.05236288]
[1722354915716,3.00261,3330.5,3329.6,6.0033]
[1722354915717,0.55,3330.2,3329.6,6.0033]
[1722354915917,3.00278,3330.3,3329.8,3.00316]
[1722354916164,0.55,3330.2,3329.9,3.00307]
[1722354916529,3.55273,3330.3,3329.7,3.0032]
[1722354916825,3.55273,3330.3,3329.8,0.10345459]
[1722354917048,0.55,3330.3,3330.0,3.00298]
[1722354917436,3.55272,3330.4,3330.1,0.10330028]
[1722354917731,3.00273,3330.3,3330.1,0.10330028]
[1722354917980,3.00273,3330.3,3330.1,35.0]
[1722354917981,0.55,3330.2,3330.1,35.0]
[1722354918333,0.55,3330.2,3330.1,38.04901288]
[1722354918760,0.55,3330.4,3330.1,38.04901288]
[1722354919092,0.55,3330.4,3330.1,35.0]
[1722354919297,3.0025,3330.6,3330.1,35.0]
[1722354919495,0.55,3330.5,3330.1,38.00286]
[1722354919987,0.55,3330.5,3330.1,41.05187288]
[1722354920192,0.55,3330.5,3330.1,38.04901288]
[1722354920193,3.5526,3330.5,3330.1,38.04901288]
[1722354920875,0.55,3330.5,3330.1,38.04901288]
[1722354921076,0.55,3330.5,3330.1,41.05187288]
[1722354923058,3.55255,3330.5,3330.1,38.04901288]
[1722354923260,3.00268,3330.4,3330.1,35.0]
[1722354923473,0.55,3330.3,3330.1,35.0]
[1722354923860,0.55,3330.3,3330.1,38.00291]
[1722354924057,0.55,3330.5,3330.1,3.00291]
[1722354924245,0.55,3330.5,3329.6,3.0]
[1722354924246,0.55,3330.5,3329.8,3.00312]
[1722354924583,3.00264,3330.4,3329.9,35.300312]
[1722354924782,3.00264,3330.4,3329.6,3.00329]
[1722354924983,2.4743,3330.8,3329.7,3.0]
[1722354924984,3.00293,3330.1,3329.7,3.0]
[1722354925170,3.00304,3330.0,3329.5,6.00338]
[1722354925371,3.00292,3330.1,3329.6,6.05231288]
[1722354925572,0.55,3330.0,3329.7,3.0]
[1722354926775,0.55,3330.0,3329.7,6.00326]
[1722354926960,0.55,3330.0,3329.8,3.00313]
[1722354927293,3.55283,3330.2,3329.7,6.00326]
[1722354927478,3.00296,3330.1,3329.7,3.59910502]
[1722354927675,3.00296,3330.1,3329.7,0.59910502]
[1722354927676,0.55,3330.0,3329.7,0.59910502]
[1722354928251,3.00309,3329.9,3329.4,38.00351]
[1722354928671,0.55,3329.8,3329.4,38.00351]